fUST/lending_fUST_20250302
["ID","MTS","AMOUNT","RATE_DAILY","PERIOD"]
[355072532,1740886320148,-500.0,0.00026653,2]
[355072533,1740886320159,-583.22,0.00026653,2]
[355072534,1740886320168,-500.0,0.00026653,2]
[355072535,1740886320178,-506.40544591,0.00026653,2]
[355072536,1740886320188,-500.0,0.00026653,2]
[355072537,1740886320198,-821.72,0.00026653,2]
[355072538,1740886320208,-703.97,0.00026653,2]
[355072539,1740886320218,-646.1,0.00026653,2]
[355072540,1740886320227,-1413.57,0.00026653,2]
[355072541,1740886320237,-548.28,0.00026653,2]
[355072542,1740886320251,-1102.8,0.00026653,2]
[355072543,1740886320260,-694.6,0.00026653,2]
[355072544,1740886320271,-540.61,0.00026653,2]
[355072545,1740886320280,-500.0,0.00026653,2]
[355072546,1740886320291,-500.0,0.00026653,2]
[355072547,1740886320301,-623.08,0.00026653,2]
[355072548,1740886320311,-1137.28,0.00026653,2]
[355072549,1740886320321,-1017.35,0.00026653,2]
[355072550,1740886320331,-500.0,0.00026653,2]
[355072551,1740886320341,-1330.22,0.00026653,2]
[355072552,1740886320351,-500.0,0.00026653,2]
[355072553,1740886320361,-500.0,0.00026653,2]
[355072554,1740886320371,-304.18448678,0.00026653,2]
[355072555,1740886320381,-1066.57,0.00026653,2]
[355072556,1740886320391,-500.0,0.00026653,2]
[355072557,1740886320401,-2368.56,0.00026653,2]
[355072558,1740886320412,-1359.76,0.00026653,2]
[355072559,1740886320422,-205.69271906,0.00026659,4]
[355072560,1740886320432,-1999.999999,0.0002678,2]
[355072561,1740886320443,-13513.14,0.00026804,2]
[355072562,1740886320452,-7624.93,0.00026804,2]
[355072563,1740886320462,-1615.71,0.00026804,5]
[355072564,1740886320472,-2961.69,0.00026804,2]
[355072565,1740886320483,-2330.23,0.00026804,2]
[355072566,1740886320493,-2306.22,0.00026804,2]
[355072567,1740886320503,-500.0,0.00026804,2]
[355072568,1740886320513,-583.22692393,0.00026816,2]
[355072569,1740886320522,-500.0,0.00026816,2]
[355072570,1740886320532,-632.19,0.00026816,2]
[355072571,1740886320543,-2053.23,0.00026816,2]
[355072572,1740886320552,-1289.53,0.00026816,2]
[355072573,1740886320562,-542.79,0.00026816,2]
[355072574,1740886320572,-500.0,0.00026816,2]
[355072575,1740886320581,-729.52,0.00026816,2]
[355072576,1740886320592,-2911.18,0.00026816,2]
[355072577,1740886320602,-543.53,0.00026816,2]
[355072578,1740886320612,-1263.1,0.00026816,2]
[355072579,1740886320623,-500.0,0.00026816,2]
[355072580,1740886320632,-2931.73,0.00026816,2]
[355072581,1740886320642,-500.0,0.00026816,2]
[355072582,1740886320652,-1979.56,0.00026816,2]
[355072583,1740886320662,-523.18,0.00026816,2]
[355072584,1740886320672,-500.0,0.00026816,2]
[355072585,1740886320682,-500.0,0.00026816,2]
[355072586,1740886320692,-2314.06,0.00026816,2]
[355072587,1740886320702,-2260.58,0.00026816,2]
[355072588,1740886320711,-828.38,0.00026816,2]
[355072589,1740886320721,-500.0,0.00026816,2]
[355072590,1740886320730,-2081.84,0.00026816,2]
[355072591,1740886320740,-1076.19,0.00026816,2]
[355072592,1740886320750,-1339.9,0.00026816,2]
[355072593,1740886320760,-500.0,0.00026816,2]
[355072594,1740886320769,-500.0,0.00026816,2]
[355072595,1740886320779,-3469.31,0.00026816,2]
[355072596,1740886320789,-1990.46,0.00026816,2]
[355072597,1740886320799,-971.07,0.00026816,2]
[355072598,1740886320808,-1249.98,0.00026816,2]
[355072599,1740886320818,-2179.06,0.00026816,2]
[355072600,1740886320828,-1012.24,0.00026816,2]
[355072601,1740886320837,-3060.91,0.00026816,2]
[355072602,1740886320847,-559.99,0.00026816,2]
[355072603,1740886320857,-615.9,0.00026816,2]
[355072604,1740886320868,-1996.5,0.00026816,2]
[355072605,1740886320878,-4060.12,0.00026816,2]
[355072606,1740886320888,-10606.09,0.00026816,2]
[355072607,1740886321204,-2799.89,0.00026816,2]
[355072608,1740886321236,-1333.19,0.00026816,2]
[355072609,1740886321248,-719.18,0.00026816,2]
[355072610,1740886321261,-835.72,0.00026816,2]
[355072611,1740886321270,-1367.07,0.00026816,2]
[355072612,1740886321280,-2939.4,0.00026816,2]
[355072613,1740886321290,-1214.18,0.00026816,2]
[355072614,1740886321300,-4481.86,0.00026816,2]
[355072615,1740886321310,-548.69,0.00026816,2]
[355072616,1740886321319,-659.46,0.00026816,2]
[355072617,1740886321330,-4158.95,0.00026816,2]
[355072618,1740886321340,-500.0,0.00026816,2]
[355072619,1740886321351,-848.25,0.00026816,2]
[355072620,1740886321360,-25489.85,0.00026816,2]
[355072621,1740886321370,-1593.02,0.00026816,2]
[355072622,1740886321380,-3140.53,0.00026816,2]
[355072623,1740886321389,-716.21,0.00026816,2]
[355072624,1740886321399,-500.0,0.00026816,2]
[355072625,1740886321410,-4639.3,0.00026816,2]
[355072626,1740886321419,-500.0,0.00026816,2]
[355072627,1740886321429,-14182.49,0.00026816,2]
[355072628,1740886321438,-1188.6,0.00026816,2]
[355072629,1740886321448,-592.63,0.00026816,2]
[355072630,1740886321458,-1643.74,0.00026816,2]
[355072631,1740886321467,-12307.96,0.00026816,2]
[355072632,1740886321478,-1368.42,0.00026816,2]
[355072633,1740886321487,-669.91,0.00026816,2]
[355072634,1740886321496,-500.0,0.00026816,2]
[355072635,1740886321506,-3975.37,0.00026816,2]
[355072636,1740886321515,-501.67,0.00026816,2]
[355072637,1740886321525,-1802.14,0.00026816,2]
[355072638,1740886321536,-962.58,0.00026816,2]
[355072639,1740886321546,-789.66,0.00026816,2]
[355072640,1740886321556,-1159.12,0.00026816,2]
[355072641,1740886321566,-20055.8,0.00026816,2]
[355072642,1740886321589,-2419.35,0.00026816,2]
[355072643,1740886321599,-4017.73,0.00026816,2]
[355072644,1740886321609,-2550.68,0.00026816,2]
[355072645,1740886321620,-1400.73,0.00026816,2]
[355072646,1740886321630,-596.32,0.00026816,2]
[355072647,1740886321640,-718.57,0.00026816,2]
[355072648,1740886321650,-1849.98,0.00026816,2]
[355072649,1740886321660,-18199.11,0.00026816,2]
[355072650,1740886321671,-500.0,0.00026816,2]
[355072651,1740886321681,-6307.07,0.00026816,2]
[355072652,1740886321691,-3500.41,0.00026816,2]
[355072653,1740886321702,-740.47,0.00026816,2]
[355072654,1740886321711,-500.0,0.00026816,2]
[355072655,1740886321721,-1093.67,0.00026816,2]
[355072656,1740886321732,-11719.04,0.00026816,2]
[355072657,1740886321743,-2757.89,0.00026816,2]
[355072658,1740886321753,-500.0,0.00026816,2]
[355072659,1740886321763,-1586.33,0.00026816,2]
[355072660,1740886321773,-23789.19,0.00026816,2]
[355072661,1740886321784,-1230.43,0.00026816,2]
[355072662,1740886321794,-500.0,0.00026816,2]
[355072663,1740886321805,-3144.58,0.00026816,2]
[355072664,1740886321815,-733.81,0.00026816,2]
[355072665,1740886321826,-6887.34,0.00026816,2]
[355072666,1740886321836,-354.77893063,0.00026817,2]
[355072667,1740886321846,-526.15,0.00026817,2]
[355072668,1740886321855,-1168.03,0.00026817,2]
[355072669,1740886321866,-500.0,0.00026817,2]
[355072670,1740886321876,-500.0,0.00026817,2]
[355072671,1740886321887,-930.89,0.00026817,2]
[355072672,1740886321897,-602.99,0.00026817,2]
[355072673,1740886321907,-500.03,0.00026817,2]
[355072674,1740886321917,-912.13,0.00026817,2]
[355072675,1740886321927,-500.0,0.00026817,2]
[355072676,1740886321937,-500.0,0.00026817,2]
[355072677,1740886321947,-516.82105827,0.00026817,2]
[355072678,1740886321957,-860.85,0.00026817,2]
[355072679,1740886321967,-584.7372218,0.00026817,2]
[355072680,1740886321977,-500.0,0.00026817,2]
[355072681,1740886321987,-500.0,0.00026817,2]
[355072682,1740886321997,-500.0,0.00026817,2]
[355072683,1740886322007,-500.0,0.00026817,2]
[355072684,1740886322017,-500.0,0.00026817,2]
[355072685,1740886322027,-500.0,0.00026817,2]
[355072686,1740886322037,-1228.22,0.00026817,2]
[355072687,1740886322046,-756.89,0.00026817,2]
[355072688,1740886322057,-585.74,0.00026817,2]
[355072689,1740886322067,-564.12,0.00026817,2]
[355072690,1740886322077,-685.69,0.00026817,2]
[355072691,1740886322086,-509.1,0.00026817,2]
[355072692,1740886322096,-500.0,0.00026817,2]
[355072693,1740886322106,-500.0,0.00026817,2]
[355072694,1740886322116,-766.25,0.00026817,2]
[355072695,1740886322127,-1706.06,0.00026817,2]
[355072696,1740886322136,-508.32367515,0.00026817,2]
[355072697,1740886322147,-870.92,0.00026817,2]
[355072698,1740886322158,-531.24,0.00026817,2]
[355072699,1740886322167,-818.25,0.00026817,2]
[355072700,1740886322184,-855.68,0.00026817,2]
[355072701,1740886322195,-500.49,0.00026817,2]
[355072702,1740886322206,-500.0,0.00026817,2]
[355072703,1740886322216,-500.0,0.00026817,2]
[355072704,1740886322227,-630.0,0.00026817,2]
[355072705,1740886322238,-500.0,0.00026817,2]
[355072706,1740886322253,-500.0,0.00026817,2]
[355072707,1740886322264,-500.0,0.00026817,2]
[355072708,1740886322275,-500.0,0.00026817,2]
[355072709,1740886322287,-500.0,0.00026817,2]
[355072710,1740886322298,-500.0,0.00026817,2]
[355072711,1740886322309,-1052.31,0.00026817,2]
[355072712,1740886322319,-1446.78,0.00026817,2]
[355072713,1740886322330,-500.0,0.00026817,2]
[355072714,1740886322341,-607.0,0.00026817,2]
[355072715,1740886322351,-500.0,0.00026817,2]
[355072716,1740886322362,-500.0,0.00026817,2]
[355072717,1740886322372,-500.0,0.00026817,2]
[355072718,1740886322383,-500.0,0.00026817,2]
[355072719,1740886322394,-1818.63,0.00026817,2]
[355072720,1740886322404,-500.0,0.00026817,2]
[355072721,1740886322416,-500.0,0.00026817,2]
[355072722,1740886322426,-500.0,0.00026817,2]
[355072723,1740886322437,-618.37,0.00026817,2]
[355072724,1740886322448,-604.16,0.00026817,2]
[355072725,1740886322458,-500.0,0.00026817,2]
[355072726,1740886322469,-500.0,0.00026817,2]
[355072727,1740886322480,-938.5,0.00026817,2]
[355072728,1740886322491,-500.0,0.00026817,2]
[355072729,1740886322501,-500.0,0.00026817,2]
[355072730,1740886322512,-801.7,0.00026817,2]
[355072731,1740886322523,-500.0,0.00026817,2]
[355072732,1740886322533,-511.53297364,0.00026817,2]
[355072733,1740886322544,-500.0,0.00026817,2]
[355072734,1740886322554,-1129.81,0.00026817,2]
[355072735,1740886322564,-8270.53,0.00026817,2]
[355072736,1740886322574,-1547.95,0.00026817,2]
[355072737,1740886322584,-27555.16,0.00026817,2]
[355072738,1740886322596,-1394.09,0.00026817,2]
[355072739,1740886322606,-1310.16,0.00026817,2]
[355072740,1740886322616,-1400.07,0.00026817,2]
[355072741,1740886322628,-3117.57,0.00026817,2]
[355072742,1740886322638,-2046.05,0.00026817,2]
[355072743,1740886322647,-3193.9,0.00026817,2]
[355072744,1740886322658,-500.0,0.00026817,2]
[355072745,1740886322669,-2337.31,0.00026817,2]
[355072746,1740886322679,-500.0,0.00026817,2]
[355072747,1740886322689,-617.74,0.00026817,2]
[355072748,1740886322699,-281943.9,0.00026817,2]
[355072749,1740886322710,-500.0,0.00026817,2]
[355072750,1740886322721,-737.91,0.00026817,2]
[355072751,1740886322731,-549.97,0.00026817,2]
[355072752,1740886322741,-6435.74,0.00026817,2]
[355072753,1740886322750,-500.0,0.00026817,2]
[355072754,1740886322760,-500.0,0.00026817,2]
[355072755,1740886322770,-3670.05,0.00026817,2]
[355072756,1740886322780,-500.0,0.00026817,2]
[355072757,1740886322789,-190.64151953,0.00026817,2]
[355072758,1740886322799,-8285.81,0.00026817,2]
[355072759,1740886322809,-500.0,0.00026817,2]
[355072760,1740886322819,-794.47,0.00026817,2]
[355072761,1740886322829,-500.0,0.00026817,2]
[355072762,1740886322838,-510.29838637,0.00026817,2]
[355072763,1740886322848,-1888.44,0.00026817,2]
[355072764,1740886322858,-500.0,0.00026817,2]
[355072765,1740886322868,-1071.59,0.00026817,2]
[355072766,1740886322878,-603.56,0.00026817,2]
[355072767,1740886322888,-1646.49,0.00026817,2]
[355072768,1740886322899,-500.0,0.00026817,2]
[355072769,1740886322908,-2181.0,0.00026817,2]
[355072770,1740886322918,-2015.79,0.00026817,2]
[355072771,1740886322928,-500.0,0.00026817,2]
[355072772,1740886322938,-510.21183711,0.00026817,2]
[355072773,1740886322947,-1677.97,0.00026817,2]
[355072774,1740886322957,-2507.59,0.00026817,2]
[355072775,1740886322967,-500.0,0.00026817,2]
[355072776,1740886322978,-500.0,0.00026817,2]
[355072777,1740886322987,-539.12087412,0.00026817,2]
[355072778,1740886322997,-415.71823666,0.00026817,2]
[355072779,1740886323007,-239.18978734,0.00026817,2]
[355072780,1740886323017,-500.0,0.00026817,2]
[355072781,1740886323026,-500.0,0.00026849,2]
[355072782,1740886323036,-2200.0,0.00026876,2]
[355072783,1740886323047,-500.0,0.00026876,2]
[355072784,1740886323056,-302.0,0.00026913,2]
[355072785,1740886323066,-150.0,0.00026917,7]
[355072786,1740886323077,-150.0,0.00026917,7]
[355072787,1740886323087,-25000.0,0.00026922,2]
[355072788,1740886323097,-687.36,0.00026926,2]
[355072789,1740886323106,-1084.31,0.00026926,2]
[355072790,1740886323116,-896.18,0.00026926,2]
[355072791,1740886323127,-500.0,0.00026926,2]
[355072792,1740886323137,-500.0,0.00026926,2]
[355072793,1740886323147,-1218.11,0.00026926,2]
[355072794,1740886323157,-828.57,0.00026926,2]
[355072795,1740886323167,-500.0,0.00026926,2]
[355072796,1740886323177,-695.69,0.00026926,2]
[355072797,1740886323187,-500.0,0.00026926,2]
[355072798,1740886323197,-500.0,0.00026926,2]
[355072799,1740886323207,-223.39069967,0.00026926,2]
[355072800,1740886323217,-1314.21,0.00026926,2]
[355072801,1740886323227,-905.22,0.00026926,2]
[355072802,1740886323237,-500.0,0.00026926,2]
[355072803,1740886323251,-614.99,0.00026926,2]
[355072804,1740886323262,-1289.22,0.00026926,2]
[355072805,1740886323271,-598.14,0.00026926,2]
[355072806,1740886323281,-2226.86,0.00026926,2]
[355072807,1740886323292,-2581.24,0.00026926,2]
[355072808,1740886323302,-500.0,0.00026926,2]
[355072809,1740886323312,-1739.44,0.00026926,2]
[355072810,1740886323322,-500.0,0.00026926,2]
[355072811,1740886323334,-1169.44,0.00026926,2]
[355072812,1740886323344,-500.0,0.00026926,2]
[355072813,1740886323354,-756.25,0.00026926,2]
[355072814,1740886323365,-1204.9,0.00026926,2]
[355072815,1740886323375,-500.0,0.00026926,2]
[355072816,1740886323386,-1004.4,0.00026926,2]
[355072817,1740886323396,-4788.78,0.00026926,2]
[355072818,1740886323406,-531.68,0.00026926,2]
[355072819,1740886323416,-3299.15,0.00026926,2]
[355072820,1740886323427,-500.0,0.00026926,2]
[355072821,1740886323438,-3768.09,0.00026926,2]
[355072822,1740886323449,-1428.31,0.00026926,2]
[355072823,1740886323460,-552.70976703,0.00026926,2]
[355072824,1740886323471,-851.2,0.00026926,2]
[355072825,1740886323481,-2684.0,0.00026926,2]
[355072826,1740886323491,-4323.02,0.00026926,2]
[355072827,1740886323502,-500.0,0.00026926,2]
[355072828,1740886323512,-782.1,0.00026926,2]
[355072829,1740886323522,-590.63,0.00026926,2]
[355072830,1740886323532,-1784.14,0.00026926,2]
[355072831,1740886323543,-1315.96,0.00026926,2]
[355072832,1740886323553,-659.17,0.00026926,2]
[355072833,1740886323564,-1228.88,0.00026926,2]
[355072834,1740886323574,-666.93,0.00026926,2]
[355072835,1740886323584,-1449.12,0.00026926,2]
[355072836,1740886323594,-505.18,0.00026926,2]
[355072837,1740886323604,-500.0,0.00026926,2]
[355072838,1740886323615,-1090.34,0.00026926,2]
[355072839,1740886323625,-2634.31,0.00026926,2]
[355072840,1740886323635,-500.0,0.00026926,2]
[355072841,1740886323646,-569.32,0.00026926,2]
[355072842,1740886323657,-6333.26,0.00026926,2]
[355072843,1740886323667,-510.69518133,0.00026926,2]
[355072844,1740886323678,-500.0,0.00026926,2]
[355072845,1740886323688,-500.0,0.00026926,2]
[355072846,1740886323699,-500.0,0.00026926,2]
[355072847,1740886323709,-500.0,0.00026926,2]
[355072848,1740886323719,-500.0,0.00026926,2]
[355072849,1740886323729,-500.0,0.00026926,2]
[355072850,1740886323739,-1915.38,0.00026926,2]
[355072851,1740886323749,-500.0,0.00026927,2]
[355072852,1740886323759,-500.51,0.00026927,2]
[355072853,1740886323769,-500.0,0.00026927,2]
[355072854,1740886323779,-591.09,0.00026927,2]
[355072855,1740886323789,-553.7,0.00026927,2]
[355072856,1740886323798,-524.51,0.00026927,2]
[355072857,1740886323808,-1474.58,0.00026927,2]
[355072858,1740886323818,-500.0,0.00026927,2]
[355072859,1740886323827,-500.0,0.00026927,2]
[355072860,1740886323837,-687.64,0.00026927,2]
[355072861,1740886323847,-521.17,0.00026927,2]
[355072862,1740886323857,-928.01,0.00026927,2]
[355072863,1740886323867,-500.0,0.00026927,2]
[355072864,1740886323879,-500.0,0.00026927,2]
[355072865,1740886323889,-583.22,0.00026927,2]
[355072866,1740886323899,-500.0,0.00026927,2]
[355072867,1740886323909,-500.0,0.00026927,2]
[355072868,1740886323919,-821.72,0.00026927,2]
[355072869,1740886323929,-703.97,0.00026927,2]
[355072870,1740886323939,-646.1,0.00026927,2]
[355072871,1740886323948,-1413.57,0.00026927,2]
[355072872,1740886323958,-548.28,0.00026927,2]
[355072873,1740886323968,-1102.8,0.00026927,2]
[355072874,1740886323979,-694.6,0.00026927,2]
[355072875,1740886323989,-540.61,0.00026927,2]
[355072876,1740886323999,-500.0,0.00026927,2]
[355072877,1740886324009,-500.0,0.00026927,2]
[355072878,1740886324019,-623.08,0.00026927,2]
[355072879,1740886324030,-1137.28,0.00026927,2]
[355072880,1740886324040,-1017.35,0.00026927,2]
[355072881,1740886324050,-500.0,0.00026927,2]
[355072882,1740886324060,-1330.22,0.00026927,2]
[355072883,1740886324070,-500.0,0.00026927,2]
[355072884,1740886324080,-500.0,0.00026927,2]
[355072885,1740886324090,-1066.57,0.00026927,2]
[355072886,1740886324100,-500.0,0.00026927,2]
[355072887,1740886324110,-2368.56,0.00026927,2]
[355072888,1740886324121,-1359.76,0.00026927,2]
[355072889,1740886324131,-3631.53840628,0.00027,2]
[355072890,1740886324142,-337.11503041,0.00027,2]
[355072891,1740886324152,-5000.0,0.00027,2]
[355072892,1740886324163,-924.0,0.00027,2]
[355072893,1740886324173,-300.0,0.00027,7]
[355072894,1740886324184,-150.0,0.00027,2]
[355072895,1740886324194,-151.0,0.00027,2]
[355072896,1740886324204,-19629.85965445,0.00027,3]
[355072897,1740886324215,-19629.85965445,0.00027,10]
[355072898,1740886324225,-160.0,0.00027,3]
[355072899,1740886324235,-1000.0,0.00027,2]
[355072900,1740886324249,-205.69271906,0.00027003,4]
[355072901,1740886324259,-155.378755,0.00027056,4]
[355072902,1740886324270,-13513.14,0.00027078,2]
[355072903,1740886324280,-7624.93,0.00027078,2]
[355072904,1740886324291,-1615.71,0.00027078,5]
[355072905,1740886324301,-2961.69,0.00027078,2]
[355072906,1740886324312,-2330.23,0.00027078,2]
[355072907,1740886324324,-2306.22,0.00027078,2]
[355072908,1740886324334,-500.0,0.00027078,2]
[355072909,1740886324344,-500.0,0.0002709,2]
[355072910,1740886324355,-632.19,0.0002709,2]
[355072911,1740886324366,-2053.23,0.0002709,2]
[355072912,1740886324378,-1289.53,0.0002709,2]
[355072913,1740886324388,-542.79,0.0002709,2]
[355072914,1740886324399,-509.9991991,0.0002709,2]
[355072915,1740886324410,-729.52,0.0002709,2]
[355072916,1740886324421,-2911.18,0.0002709,2]
[355072917,1740886324432,-543.53,0.0002709,2]
[355072918,1740886324443,-1263.1,0.0002709,2]
[355072919,1740886324453,-536.53770525,0.0002709,2]
[355072920,1740886324463,-2931.73,0.0002709,2]
[355072921,1740886324474,-500.0,0.0002709,2]
[355072922,1740886324484,-1979.56,0.0002709,2]
[355072923,1740886324494,-523.18,0.0002709,2]
[355072924,1740886324505,-500.0,0.0002709,2]
[355072925,1740886324515,-500.0,0.0002709,2]
[355072926,1740886324525,-2314.06,0.0002709,2]
[355072927,1740886324535,-2260.58,0.0002709,2]
[355072928,1740886324545,-828.38,0.0002709,2]
[355072929,1740886324555,-500.0,0.0002709,2]
[355072930,1740886324566,-2081.84,0.0002709,2]
[355072931,1740886324576,-1076.19,0.0002709,2]
[355072932,1740886324586,-1339.9,0.0002709,2]
[355072933,1740886324596,-500.0,0.0002709,2]
[355072934,1740886324607,-500.0,0.0002709,2]
[355072935,1740886324616,-3469.31,0.0002709,2]
[355072936,1740886324627,-1990.46,0.0002709,2]
[355072937,1740886324637,-971.07,0.0002709,2]
[355072938,1740886324648,-1249.98,0.0002709,2]
[355072939,1740886324658,-2179.06,0.0002709,2]
[355072940,1740886324668,-1012.24,0.0002709,2]
[355072941,1740886324678,-3060.91,0.0002709,2]
[355072942,1740886324688,-559.99,0.0002709,2]
[355072943,1740886324698,-615.9,0.0002709,2]
[355072944,1740886324708,-1996.5,0.0002709,2]
[355072945,1740886324718,-4060.12,0.0002709,2]
[355072946,1740886324727,-10606.09,0.0002709,2]
[355072947,1740886324737,-2799.89,0.0002709,2]
[355072948,1740886324747,-1333.19,0.0002709,2]
[355072949,1740886324756,-719.18,0.0002709,2]
[355072950,1740886324766,-835.72,0.0002709,2]
[355072951,1740886324776,-1367.07,0.0002709,2]
[355072952,1740886324785,-2939.4,0.0002709,2]
[355072953,1740886324795,-1214.18,0.0002709,2]
[355072954,1740886324805,-4481.86,0.0002709,2]
[355072955,1740886324814,-548.69,0.0002709,2]
[355072956,1740886324824,-659.46,0.0002709,2]
[355072957,1740886324834,-4158.95,0.0002709,2]
[355072958,1740886324844,-500.0,0.0002709,2]
[355072959,1740886324854,-848.25,0.0002709,2]
[355072960,1740886324863,-25489.85,0.0002709,2]
[355072961,1740886324874,-1593.02,0.0002709,2]
[355072962,1740886324883,-3140.53,0.0002709,2]
[355072963,1740886324893,-716.21,0.0002709,2]
[355072964,1740886324903,-500.0,0.0002709,2]
[355072965,1740886324913,-4639.3,0.0002709,2]
[355072966,1740886324923,-500.0,0.0002709,2]
[355072967,1740886324933,-14182.49,0.0002709,2]
[355072968,1740886324943,-1188.6,0.0002709,2]
[355072969,1740886324953,-592.63,0.0002709,2]
[355072970,1740886324963,-1643.74,0.0002709,2]
[355072971,1740886324972,-12307.96,0.0002709,2]
[355072972,1740886325231,-1368.42,0.0002709,2]
[355072973,1740886325242,-669.91,0.0002709,2]
[355072974,1740886325255,-500.0,0.0002709,2]
[355072975,1740886325264,-3975.37,0.0002709,2]
[355072976,1740886325274,-501.67,0.0002709,2]
[355072977,1740886325287,-1802.14,0.0002709,2]
[355072978,1740886325296,-962.58,0.0002709,2]
[355072979,1740886325307,-789.66,0.0002709,2]
[355072980,1740886325316,-1159.12,0.0002709,2]
[355072981,1740886325327,-20055.8,0.0002709,2]
[355072982,1740886325337,-2419.35,0.0002709,2]
[355072983,1740886325347,-4017.73,0.0002709,2]
[355072984,1740886325356,-2550.68,0.0002709,2]
[355072985,1740886325366,-1400.73,0.0002709,2]
[355072986,1740886325376,-596.32,0.0002709,2]
[355072987,1740886325386,-718.57,0.0002709,2]
[355072988,1740886325396,-1849.98,0.0002709,2]
[355072989,1740886325407,-18199.11,0.0002709,2]
[355072990,1740886325418,-500.0,0.0002709,2]
[355072991,1740886325428,-6307.07,0.0002709,2]
[355072992,1740886325438,-3500.41,0.0002709,2]
[355072993,1740886325448,-740.47,0.0002709,2]
[355072994,1740886325458,-500.0,0.0002709,2]
[355072995,1740886325468,-1093.67,0.0002709,2]
[355072996,1740886325478,-11719.04,0.0002709,2]
[355072997,1740886325489,-2757.89,0.0002709,2]
[355072998,1740886325499,-500.0,0.0002709,2]
[355072999,1740886325508,-1586.33,0.0002709,2]
[355073000,1740886325518,-23789.19,0.0002709,2]
[355073001,1740886325528,-1230.43,0.0002709,2]
[355073002,1740886325538,-500.0,0.0002709,2]
[355073003,1740886325549,-3144.58,0.0002709,2]
[355073004,1740886325559,-733.81,0.0002709,2]
[355073005,1740886325569,-6887.34,0.0002709,2]
[355073006,1740886325579,-526.15,0.00027091,2]
[355073007,1740886325589,-1168.03,0.00027091,2]
[355073008,1740886325599,-517.2705118,0.00027091,2]
[355073009,1740886325609,-500.0,0.00027091,2]
[355073010,1740886325618,-930.89,0.00027091,2]
[355073011,1740886325629,-602.99,0.00027091,2]
[355073012,1740886325639,-500.03,0.00027091,2]
[355073013,1740886325649,-912.13,0.00027091,2]
[355073014,1740886325659,-500.0,0.00027091,2]
[355073015,1740886325669,-500.0,0.00027091,2]
[355073016,1740886325679,-860.85,0.00027091,2]
[355073017,1740886325689,-500.0,0.00027091,2]
[355073018,1740886325699,-500.0,0.00027091,2]
[355073019,1740886325709,-500.0,0.00027091,2]
[355073020,1740886325719,-500.0,0.00027091,2]
[355073021,1740886325728,-500.0,0.00027091,2]
[355073022,1740886325738,-500.0,0.00027091,2]
[355073023,1740886325747,-1228.22,0.00027091,2]
[355073024,1740886325757,-756.89,0.00027091,2]
[355073025,1740886325766,-585.74,0.00027091,2]
[355073026,1740886325776,-564.12,0.00027091,2]
[355073027,1740886325785,-685.69,0.00027091,2]
[355073028,1740886325794,-509.1,0.00027091,2]
[355073029,1740886325804,-500.0,0.00027091,2]
[355073030,1740886325814,-500.0,0.00027091,2]
[355073031,1740886325824,-766.25,0.00027091,2]